[Event "Early-Titled-Tuesday-Blitz-January-30-2024"]
[Site "Chess.com"]
[Date "2024.01.30"]
[Round "8"]
[White "ilushka"]
[Black "Shushik"]
[Result "1-0"]
[WhiteElo "2365"]
[BlackElo "2514"]
[TimeControl "180+1"]
[EndTime "9:30:28 PST"]
[Termination "ilushka won by checkmate"]

1. e4 {[%clk 0:02:58.1]} 1... e5 {[%clk 0:03:00.7]} 2. Nf3 {[%clk 0:02:57.9]}
2... Nc6 {[%clk 0:03:01.4]} 3. Bb5 {[%clk 0:02:57.5]} 3... Nf6 {[%clk
0:03:01.2]} 4. O-O {[%clk 0:02:57.1]} 4... Nxe4 {[%clk 0:03:01.3]} 5. d4 {[%clk
0:02:57.2]} 5... Nd6 {[%clk 0:03:01.3]} 6. Bxc6 {[%clk 0:02:57.8]} 6... dxc6
{[%clk 0:03:02.2]} 7. dxe5 {[%clk 0:02:58.4]} 7... Nf5 {[%clk 0:03:02]} 8. Qxd8+
{[%clk 0:02:59.3]} 8... Kxd8 {[%clk 0:03:02.4]} 9. Nc3 {[%clk 0:02:58.7]} 9...
Ke8 {[%clk 0:03:00.9]} 10. h3 {[%clk 0:02:57.3]} 10... Bc5 {[%clk 0:02:57.8]}
11. Ne4 {[%clk 0:02:44]} 11... Bb6 {[%clk 0:02:55.1]} 12. a4 {[%clk 0:02:40.2]}
12... a6 {[%clk 0:02:52.8]} 13. a5 {[%clk 0:02:39.4]} 13... Ba7 {[%clk
0:02:53.1]} 14. b3 {[%clk 0:02:36.9]} 14... Be6 {[%clk 0:02:52.4]} 15. Ba3
{[%clk 0:02:34.1]} 15... Nd4 {[%clk 0:02:33.7]} 16. Bc5 {[%clk 0:02:08.9]} 16...
Nxf3+ {[%clk 0:02:30.4]} 17. gxf3 {[%clk 0:02:08]} 17... Bxh3 {[%clk 0:02:30]}
18. Rfd1 {[%clk 0:01:55.8]} 18... Bf5 {[%clk 0:02:26.6]} 19. Bxa7 {[%clk
0:01:55.6]} 19... Bxe4 {[%clk 0:02:23.2]} 20. fxe4 {[%clk 0:01:54.6]} 20... Rxa7
{[%clk 0:02:23.3]} 21. Rd4 {[%clk 0:01:48.7]} 21... Ke7 {[%clk 0:02:20.5]} 22.
Rad1 {[%clk 0:01:48.1]} 22... Ke6 {[%clk 0:02:18.5]} 23. f4 {[%clk 0:01:47]}
23... Raa8 {[%clk 0:02:17.5]} 24. Rb4 {[%clk 0:01:35.2]} 24... Rab8 {[%clk
0:02:16]} 25. Kf2 {[%clk 0:01:35.3]} 25... g6 {[%clk 0:02:09.5]} 26. Ke3 {[%clk
0:01:31]} 26... Rhe8 {[%clk 0:02:07.5]} 27. Rbd4 {[%clk 0:01:23.1]} 27... h5
{[%clk 0:02:05.5]} 28. Rd7 {[%clk 0:01:19.5]} 28... Rbc8 {[%clk 0:02:00.2]} 29.
Kf3 {[%clk 0:01:15.5]} 29... Rg8 {[%clk 0:01:43.3]} 30. Kg3 {[%clk 0:01:01.9]}
30... g5 {[%clk 0:01:34.7]} 31. f5+ {[%clk 0:01:01.9]} 31... Kxe5 {[%clk
0:01:34.7]} 32. Re7+ {[%clk 0:00:46.8]} 32... Kf6 {[%clk 0:01:32.4]} 33. Rdd7
{[%clk 0:00:47.2]} 33... Rgf8 {[%clk 0:01:28.3]} 34. Kf3 {[%clk 0:00:34.1]}
34... b6 {[%clk 0:01:15.1]} 35. Rxc7 {[%clk 0:00:31.9]} 35... bxa5 {[%clk
0:01:12.4]} 36. Rxf7+ {[%clk 0:00:23.6]} 36... Rxf7 {[%clk 0:01:12.5]} 37. Rxc8
{[%clk 0:00:23.7]} 37... Ke5 {[%clk 0:00:52.2]} 38. Rxc6 {[%clk 0:00:23.1]}
38... g4+ {[%clk 0:00:52.6]} 39. Ke3 {[%clk 0:00:22.5]} 39... Re7 {[%clk
0:00:44.4]} 40. Rc5+ {[%clk 0:00:20.6]} 40... Kf6 {[%clk 0:00:43.6]} 41. Kf4
{[%clk 0:00:21.5]} 41... h4 {[%clk 0:00:42.1]} 42. e5+ {[%clk 0:00:18.2]} 42...
Kf7 {[%clk 0:00:41.5]} 43. Kxg4 {[%clk 0:00:17.6]} 43... Re8 {[%clk 0:00:38.1]}
44. Kxh4 {[%clk 0:00:17]} 44... Rh8+ {[%clk 0:00:38.7]} 45. Kg5 {[%clk
0:00:17.3]} 45... Rh2 {[%clk 0:00:38.6]} 46. Rc7+ {[%clk 0:00:16.8]} 46... Ke8
{[%clk 0:00:39.2]} 47. e6 {[%clk 0:00:15.8]} 47... a4 {[%clk 0:00:36]} 48. bxa4
{[%clk 0:00:15.5]} 48... a5 {[%clk 0:00:36.5]} 49. f6 {[%clk 0:00:14.6]} 49...
Rg2+ {[%clk 0:00:36.2]} 50. Kh4 {[%clk 0:00:14]} 50... Rh2+ {[%clk 0:00:31.8]}
51. Kg3 {[%clk 0:00:13.8]} 51... Rd2 {[%clk 0:00:24.6]} 52. Rc8+ {[%clk
0:00:13.9]} 52... Rd8 {[%clk 0:00:24.7]} 53. f7+ {[%clk 0:00:14.5]} 53... Ke7
{[%clk 0:00:25.1]} 54. Rxd8 {[%clk 0:00:15]} 54... Kxd8 {[%clk 0:00:25.7]} 55.
f8=Q+ {[%clk 0:00:15.4]} 55... Kc7 {[%clk 0:00:26.6]} 56. Qc5+ {[%clk
0:00:14.9]} 56... Kb7 {[%clk 0:00:24.3]} 57. e7 {[%clk 0:00:14.9]} 57... Ka6
{[%clk 0:00:24.6]} 58. e8=Q {[%clk 0:00:15.1]} 58... Kb7 {[%clk 0:00:25.1]} 59.
Qec8# {[%clk 0:00:14.5]} 1-0

[Event "Early-Titled-Tuesday-Blitz-January-30-2024"]
[Site "Chess.com"]
[Date "2024.01.30"]
[Round "8"]
[White "AustinThomas12345"]
[Black "GoValya"]
[Result "1/2-1/2"]
[WhiteElo "2498"]
[BlackElo "2328"]
[TimeControl "180+1"]
[EndTime "9:30:28 PST"]
[Termination "Game drawn by repetition"]

1. e4 {[%clk 0:02:59.8]} 1... e6 {[%clk 0:02:56.5]} 2. d4 {[%clk 0:02:59.6]}
2... d5 {[%clk 0:02:55]} 3. Nd2 {[%clk 0:03:00]} 3... c5 {[%clk 0:02:54.2]} 4.
Ngf3 {[%clk 0:02:59.2]} 4... Nf6 {[%clk 0:02:53]} 5. Bb5+ {[%clk 0:02:55]} 5...
Nc6 {[%clk 0:02:52.2]} 6. exd5 {[%clk 0:02:54.1]} 6... exd5 {[%clk 0:02:51.8]}
7. O-O {[%clk 0:02:53.9]} 7... Be7 {[%clk 0:02:51.8]} 8. dxc5 {[%clk 0:02:53.3]}
8... O-O {[%clk 0:02:51.5]} 9. Nb3 {[%clk 0:02:51.9]} 9... h6 {[%clk 0:02:48.9]}
10. h3 {[%clk 0:02:51.5]} 10... Bf5 {[%clk 0:02:44.9]} 11. Bd3 {[%clk
0:02:50.4]} 11... Ne4 {[%clk 0:02:42.1]} 12. Be3 {[%clk 0:02:48.6]} 12... a5
{[%clk 0:02:32]} 13. Nbd4 {[%clk 0:02:46.4]} 13... Nxd4 {[%clk 0:02:22.2]} 14.
Bxd4 {[%clk 0:02:47.3]} 14... Rc8 {[%clk 0:02:11.1]} 15. Re1 {[%clk 0:02:42.9]}
15... Bxc5 {[%clk 0:02:05.8]} 16. Bxc5 {[%clk 0:02:41.8]} 16... Rxc5 {[%clk
0:02:05.6]} 17. Nd4 {[%clk 0:02:41.7]} 17... Bg6 {[%clk 0:01:58.9]} 18. c3
{[%clk 0:02:34.5]} 18... Qf6 {[%clk 0:01:47.8]} 19. Qf3 {[%clk 0:02:12.5]} 19...
Qxf3 {[%clk 0:01:39.7]} 20. Nxf3 {[%clk 0:02:13.4]} 20... a4 {[%clk 0:01:27.7]}
21. a3 {[%clk 0:02:03.6]} 21... Rfc8 {[%clk 0:01:18]} 22. Nd4 {[%clk 0:01:56.3]}
22... Nd2 {[%clk 0:00:49.5]} 23. Bxg6 {[%clk 0:01:53.6]} 23... fxg6 {[%clk
0:00:50.4]} 24. Re7 {[%clk 0:01:53.7]} 24... R8c7 {[%clk 0:00:47]} 25. Rae1
{[%clk 0:01:46.1]} 25... Nc4 {[%clk 0:00:43.2]} 26. Rxc7 {[%clk 0:01:35.5]}
26... Rxc7 {[%clk 0:00:42.6]} 27. Re8+ {[%clk 0:01:03.2]} 27... Kf7 {[%clk
0:00:42.5]} 28. Rd8 {[%clk 0:01:03.2]} 28... Nxb2 {[%clk 0:00:35.9]} 29. Rxd5
{[%clk 0:01:03.4]} 29... Rxc3 {[%clk 0:00:29.2]} 30. Nb5 {[%clk 0:00:58.1]}
30... Rb3 {[%clk 0:00:20.7]} 31. Rd7+ {[%clk 0:00:57.4]} 31... Kf6 {[%clk
0:00:19.8]} 32. Rxb7 {[%clk 0:00:57.5]} 32... Nc4 {[%clk 0:00:19]} 33. Rc7
{[%clk 0:00:24.5]} 33... Nxa3 {[%clk 0:00:16.1]} 34. Nd4 {[%clk 0:00:16.5]}
34... Rb1+ {[%clk 0:00:15.2]} 35. Kh2 {[%clk 0:00:17.3]} 35... Ke5 {[%clk
0:00:10.1]} 36. Nc6+ {[%clk 0:00:15.8]} 36... Kd6 {[%clk 0:00:10.5]} 37. Ra7
{[%clk 0:00:12.2]} 37... Kxc6 {[%clk 0:00:10.4]} 38. Rxa4 {[%clk 0:00:12.9]}
38... Nb5 {[%clk 0:00:10.7]} 39. Rc4+ {[%clk 0:00:13.3]} 39... Kd5 {[%clk
0:00:10.5]} 40. Rf4 {[%clk 0:00:13.6]} 40... Rb2 {[%clk 0:00:10.2]} 41. Rf7
{[%clk 0:00:13.7]} 41... Nd6 {[%clk 0:00:10.4]} 42. Rxg7 {[%clk 0:00:13.9]}
42... Rxf2 {[%clk 0:00:10.5]} 43. Rxg6 {[%clk 0:00:14.4]} 43... h5 {[%clk
0:00:10.4]} 44. Rg5+ {[%clk 0:00:14.4]} 44... Rf5 {[%clk 0:00:10.8]} 45. Rxf5+
{[%clk 0:00:14.9]} 45... Nxf5 {[%clk 0:00:11.7]} 46. g4 {[%clk 0:00:15.8]} 46...
hxg4 {[%clk 0:00:11.6]} 47. hxg4 {[%clk 0:00:16.7]} 47... Ne7 {[%clk 0:00:11.4]}
48. Kg3 {[%clk 0:00:17.3]} 48... Ke6 {[%clk 0:00:12.3]} 49. Kh4 {[%clk
0:00:18.2]} 49... Kf6 {[%clk 0:00:12.7]} 50. Kh5 {[%clk 0:00:18.9]} 50... Kg7
{[%clk 0:00:12.9]} 51. Kg5 {[%clk 0:00:19.1]} 51... Ng6 {[%clk 0:00:13.8]} 52.
Kf5 {[%clk 0:00:20]} 52... Ne7+ {[%clk 0:00:14.3]} 53. Kg5 {[%clk 0:00:20.6]}
53... Ng6 {[%clk 0:00:15.2]} 54. Kf5 {[%clk 0:00:21.5]} 54... Ne7+ {[%clk
0:00:15.8]} 55. Kg5 {[%clk 0:00:22.4]} 1/2-1/2

[Event "Early-Titled-Tuesday-Blitz-January-30-2024"]
[Site "Chess.com"]
[Date "2024.01.30"]
[Round "8"]
[White "UnTucopalaTimba"]
[Black "Sofia_Blokhin"]
[Result "0-1"]
[WhiteElo "1920"]
[BlackElo "2242"]
[TimeControl "180+1"]
[EndTime "9:30:28 PST"]
[Termination "Sofia_Blokhin won on time"]

1. e4 {[%clk 0:03:00]} 1... c5 {[%clk 0:02:56.9]} 2. Nf3 {[%clk 0:02:59.2]} 2...
e6 {[%clk 0:02:56.6]} 3. c3 {[%clk 0:02:58.2]} 3... d5 {[%clk 0:02:51.7]} 4.
exd5 {[%clk 0:02:58]} 4... exd5 {[%clk 0:02:51.3]} 5. d4 {[%clk 0:02:58.3]} 5...
Nf6 {[%clk 0:02:51]} 6. Bg5 {[%clk 0:02:54.4]} 6... Nc6 {[%clk 0:02:50.4]} 7.
Bb5 {[%clk 0:02:49]} 7... Be7 {[%clk 0:02:44.4]} 8. O-O {[%clk 0:02:47.5]} 8...
O-O {[%clk 0:02:43.7]} 9. dxc5 {[%clk 0:02:46.6]} 9... Bxc5 {[%clk 0:02:42.2]}
10. Nbd2 {[%clk 0:02:40.1]} 10... h6 {[%clk 0:02:37.3]} 11. Bh4 {[%clk
0:02:39.4]} 11... g5 {[%clk 0:02:34.3]} 12. Bg3 {[%clk 0:02:38.9]} 12... Bg4
{[%clk 0:02:30]} 13. h3 {[%clk 0:02:35]} 13... Bh5 {[%clk 0:02:28.9]} 14. Qc2
{[%clk 0:02:27.4]} 14... a6 {[%clk 0:02:17.8]} 15. Bd3 {[%clk 0:02:11.2]} 15...
Bd6 {[%clk 0:02:17.2]} 16. Bxd6 {[%clk 0:02:03.8]} 16... Qxd6 {[%clk 0:02:18.1]}
17. Rfe1 {[%clk 0:01:59]} 17... Rfe8 {[%clk 0:02:13.1]} 18. g4 {[%clk 0:01:52]}
18... Nxg4 {[%clk 0:02:03.4]} 19. hxg4 {[%clk 0:01:51.5]} 19... Bxg4 {[%clk
0:02:03.4]} 20. Bh7+ {[%clk 0:01:46.1]} 20... Kg7 {[%clk 0:02:01.6]} 21. Bf5
{[%clk 0:01:45.9]} 21... Bh5 {[%clk 0:01:31.7]} 22. Kg2 {[%clk 0:01:36.2]} 22...
Qf4 {[%clk 0:01:21.5]} 23. Bd7 {[%clk 0:01:23.8]} 23... Red8 {[%clk 0:01:04.8]}
24. Qf5 {[%clk 0:01:09.1]} 24... Qd6 {[%clk 0:00:51.3]} 25. Bxc6 {[%clk
0:01:08.3]} 25... Qxc6 {[%clk 0:00:45.8]} 26. Nd4 {[%clk 0:00:57.1]} 26... Qd6
{[%clk 0:00:46]} 27. Qe5+ {[%clk 0:00:44]} 27... Qxe5 {[%clk 0:00:44.1]} 28.
Rxe5 {[%clk 0:00:43.8]} 28... Bg4 {[%clk 0:00:36.9]} 29. Rae1 {[%clk 0:00:40.4]}
29... Rac8 {[%clk 0:00:30.7]} 30. Kg3 {[%clk 0:00:36.1]} 30... Bh5 {[%clk
0:00:27.4]} 31. Re7 {[%clk 0:00:35.5]} 31... Kf6 {[%clk 0:00:20.4]} 32. Rxb7
{[%clk 0:00:31.2]} 32... Rb8 {[%clk 0:00:20.6]} 33. Ree7 {[%clk 0:00:20.6]}
33... Bg6 {[%clk 0:00:17.5]} 34. Nc6 {[%clk 0:00:19]} 34... Rxb7 {[%clk
0:00:17.4]} 35. Rxb7 {[%clk 0:00:17]} 35... Re8 {[%clk 0:00:10.7]} 36. Nd4
{[%clk 0:00:14.2]} 36... Re1 {[%clk 0:00:09.8]} 37. Rb6+ {[%clk 0:00:13.4]}
37... Kg7 {[%clk 0:00:08.7]} 38. Rxa6 {[%clk 0:00:11.1]} 38... h5 {[%clk
0:00:08.3]} 39. N2f3 {[%clk 0:00:10]} 39... h4+ {[%clk 0:00:07.1]} 40. Kg2
{[%clk 0:00:09.3]} 40... Rc1 {[%clk 0:00:05.9]} 41. Nxg5 {[%clk 0:00:05]} 41...
Be4+ {[%clk 0:00:06.1]} 42. Nxe4 {[%clk 0:00:04.9]} 42... dxe4 {[%clk 0:00:07]}
43. Rb6 {[%clk 0:00:02.7]} 43... Rd1 {[%clk 0:00:06.5]} 0-1

[Event "Early-Titled-Tuesday-Blitz-January-30-2024"]
[Site "Chess.com"]
[Date "2024.01.30"]
[Round "8"]
[White "LaPiToB"]
[Black "noblerone"]
[Result "1-0"]
[WhiteElo "2309"]
[BlackElo "2480"]
[TimeControl "180+1"]
[EndTime "9:30:29 PST"]
[Termination "LaPiToB won on time"]

1. d4 {[%clk 0:03:00.9]} 1... d5 {[%clk 0:02:53.6]} 2. c4 {[%clk 0:03:00.3]}
2... c6 {[%clk 0:02:53.7]} 3. Nc3 {[%clk 0:02:59.4]} 3... Nf6 {[%clk 0:02:52.3]}
4. e3 {[%clk 0:02:58.6]} 4... a6 {[%clk 0:02:50.6]} 5. Nf3 {[%clk 0:02:53.9]}
5... b5 {[%clk 0:02:50.6]} 6. b3 {[%clk 0:02:52.8]} 6... Bg4 {[%clk 0:02:50.3]}
7. Be2 {[%clk 0:02:52.2]} 7... e6 {[%clk 0:02:49.1]} 8. O-O {[%clk 0:02:51.6]}
8... Bd6 {[%clk 0:02:41.4]} 9. a4 {[%clk 0:02:49.1]} 9... bxc4 {[%clk
0:02:31.7]} 10. bxc4 {[%clk 0:02:48]} 10... O-O {[%clk 0:02:32]} 11. h3 {[%clk
0:02:39.9]} 11... Bh5 {[%clk 0:02:31.7]} 12. c5 {[%clk 0:02:12.5]} 12... Bc7
{[%clk 0:02:30.8]} 13. Ne5 {[%clk 0:02:05.2]} 13... Bxe2 {[%clk 0:02:28.5]} 14.
Qxe2 {[%clk 0:02:06.1]} 14... Bxe5 {[%clk 0:01:47.5]} 15. dxe5 {[%clk
0:02:04.9]} 15... Nfd7 {[%clk 0:01:48]} 16. f4 {[%clk 0:02:04]} 16... Nxc5
{[%clk 0:01:42.4]} 17. Ba3 {[%clk 0:02:03.5]} 17... Nbd7 {[%clk 0:01:43]} 18.
Rf3 {[%clk 0:02:03.1]} 18... Re8 {[%clk 0:01:39.4]} 19. Rg3 {[%clk 0:02:03.1]}
19... f5 {[%clk 0:01:37]} 20. exf6 {[%clk 0:01:54]} 20... Qxf6 {[%clk
0:01:33.7]} 21. Rc1 {[%clk 0:01:47.1]} 21... Rab8 {[%clk 0:01:09.2]} 22. Bxc5
{[%clk 0:01:30.9]} 22... Nxc5 {[%clk 0:01:03.5]} 23. Nxd5 {[%clk 0:01:31.1]}
23... cxd5 {[%clk 0:01:01.7]} 24. Rxc5 {[%clk 0:01:31.2]} 24... Re7 {[%clk
0:00:46]} 25. Qxa6 {[%clk 0:01:28.5]} 25... d4 {[%clk 0:00:40.6]} 26. f5 {[%clk
0:01:20.9]} 26... dxe3 {[%clk 0:00:29.1]} 27. Rxe3 {[%clk 0:01:09.1]} 27... Rbe8
{[%clk 0:00:24.4]} 28. fxe6 {[%clk 0:01:04]} 28... Qd4 {[%clk 0:00:21.7]} 29.
Re5 {[%clk 0:00:59.5]} 29... Ra7 {[%clk 0:00:16.5]} 30. Qc6 {[%clk 0:00:55]}
30... Qxa4 {[%clk 0:00:12.6]} 31. Qf3 {[%clk 0:00:49.9]} 31... Rae7 {[%clk
0:00:11.4]} 32. Kh2 {[%clk 0:00:45]} 32... Qa8 {[%clk 0:00:10.3]} 33. R3e4
{[%clk 0:00:44.1]} 33... Qc6 {[%clk 0:00:09.5]} 34. Qf5 {[%clk 0:00:43.2]} 34...
Qd6 {[%clk 0:00:09.8]} 35. Kh1 {[%clk 0:00:39.1]} 35... h6 {[%clk 0:00:09.9]}
36. h4 {[%clk 0:00:38.6]} 36... Qd1+ {[%clk 0:00:09.6]} 37. Re1 {[%clk
0:00:37.8]} 37... Qd6 {[%clk 0:00:09.6]} 38. h5 {[%clk 0:00:38]} 38... Qc7
{[%clk 0:00:08.7]} 39. Qg6 {[%clk 0:00:37.7]} 39... Rf8 {[%clk 0:00:08.3]} 40.
Qg4 {[%clk 0:00:31.4]} 40... Rfe8 {[%clk 0:00:07.6]} 41. R1e3 {[%clk 0:00:29.7]}
41... Rf8 {[%clk 0:00:07.8]} 42. Rg3 {[%clk 0:00:29.6]} 42... Qc1+ {[%clk
0:00:07.2]} 43. Kh2 {[%clk 0:00:29.3]} 43... Qf4 {[%clk 0:00:07.9]} 44. Qxf4
{[%clk 0:00:20.5]} 44... Rxf4 {[%clk 0:00:08.8]} 45. Kh3 {[%clk 0:00:19.5]}
45... Rf6 {[%clk 0:00:08]} 46. Rg6 {[%clk 0:00:19.8]} 46... Rf4 {[%clk
0:00:06.6]} 47. g3 {[%clk 0:00:19.6]} 47... Rf1 {[%clk 0:00:06.5]} 48. Kg4
{[%clk 0:00:19.7]} 48... Rf2 {[%clk 0:00:05.8]} 49. Rc5 {[%clk 0:00:18.7]} 49...
Re8 {[%clk 0:00:04.2]} 50. Rc7 {[%clk 0:00:18.4]} 50... Kh8 {[%clk 0:00:01.2]}
51. Rgxg7 {[%clk 0:00:17.3]} 1-0

[Event "Early-Titled-Tuesday-Blitz-January-30-2024"]
[Site "Chess.com"]
[Date "2024.01.30"]
[Round "8"]
[White "Zq1"]
[Black "MaxLeto"]
[Result "0-1"]
[WhiteElo "2502"]
[BlackElo "2381"]
[TimeControl "180+1"]
[EndTime "9:30:30 PST"]
[Termination "MaxLeto won on time"]

1. d4 {[%clk 0:03:00.9]} 1... h5 {[%clk 0:02:59.2]} 2. c4 {[%clk 0:02:57.9]}
2... h4 {[%clk 0:02:59.5]} 3. h3 {[%clk 0:02:57.1]} 3... d6 {[%clk 0:02:59.5]}
4. Nc3 {[%clk 0:02:57.1]} 4... e5 {[%clk 0:02:59.9]} 5. Nf3 {[%clk 0:02:51.3]}
5... Nc6 {[%clk 0:02:59.3]} 6. dxe5 {[%clk 0:02:44.2]} 6... Nxe5 {[%clk
0:03:00.2]} 7. e4 {[%clk 0:02:27.5]} 7... Be6 {[%clk 0:02:58.3]} 8. b3 {[%clk
0:02:22.2]} 8... Be7 {[%clk 0:02:51.5]} 9. Bb2 {[%clk 0:02:13.9]} 9... Bf6
{[%clk 0:02:52.1]} 10. Be2 {[%clk 0:02:08.1]} 10... Ne7 {[%clk 0:02:50.7]} 11.
Qc2 {[%clk 0:02:00.4]} 11... Nxf3+ {[%clk 0:02:48.6]} 12. Bxf3 {[%clk
0:01:56.5]} 12... Nc6 {[%clk 0:02:49.5]} 13. O-O-O {[%clk 0:01:46.5]} 13... a5
{[%clk 0:02:09.1]} 14. Rhe1 {[%clk 0:01:42.1]} 14... O-O {[%clk 0:02:07.8]} 15.
c5 {[%clk 0:01:26.6]} 15... Be5 {[%clk 0:02:05.2]} 16. Nd5 {[%clk 0:01:14.6]}
16... Bxd5 {[%clk 0:01:41.6]} 17. Bxe5 {[%clk 0:01:04.2]} 17... Bxb3 {[%clk
0:01:19.7]} 18. Qxb3 {[%clk 0:00:51.3]} 18... Qg5+ {[%clk 0:01:11.8]} 19. Qe3
{[%clk 0:00:48]} 19... Qxe5 {[%clk 0:01:09.5]} 20. Kb1 {[%clk 0:00:41.8]} 20...
dxc5 {[%clk 0:00:32.5]} 21. Rd5 {[%clk 0:00:41.2]} 21... Qe7 {[%clk 0:00:22.5]}
22. Qxc5 {[%clk 0:00:39.4]} 22... Qxc5 {[%clk 0:00:08]} 23. Rxc5 {[%clk
0:00:38.5]} 23... Ra6 {[%clk 0:00:08.9]} 24. e5 {[%clk 0:00:37]} 24... Rb6+
{[%clk 0:00:08.2]} 25. Ka1 {[%clk 0:00:30]} 25... Nb4 {[%clk 0:00:07.7]} 26.
Rxc7 {[%clk 0:00:24]} 26... Nd3 {[%clk 0:00:04.4]} 27. Re3 {[%clk 0:00:17.6]}
27... Nxf2 {[%clk 0:00:03.5]} 28. Rxb7 {[%clk 0:00:14.3]} 28... Rxb7 {[%clk
0:00:02.8]} 29. Bxb7 {[%clk 0:00:13]} 29... Rd8 {[%clk 0:00:03.3]} 30. Re2
{[%clk 0:00:10.4]} 30... Rd1+ {[%clk 0:00:03.3]} 31. Kb2 {[%clk 0:00:09.8]}
31... Rf1 {[%clk 0:00:03.8]} 32. Bd5 {[%clk 0:00:06.8]} 32... Nd3+ {[%clk
0:00:03.6]} 33. Kc3 {[%clk 0:00:06.3]} 33... Nf4 {[%clk 0:00:04.3]} 34. Rd2
{[%clk 0:00:05]} 34... Rg1 {[%clk 0:00:04.2]} 35. Bf3 {[%clk 0:00:03.7]} 35...
g5 {[%clk 0:00:04.4]} 36. Kd4 {[%clk 0:00:03.4]} 36... Kg7 {[%clk 0:00:04.6]}
37. Ke4 {[%clk 0:00:03.5]} 37... Kg6 {[%clk 0:00:04.3]} 38. Rd6+ {[%clk
0:00:02.9]} 38... Kg7 {[%clk 0:00:04.8]} 39. Kf5 {[%clk 0:00:03.2]} 39... Nxg2
{[%clk 0:00:04.3]} 40. Rd7 {[%clk 0:00:03.1]} 40... Ne3+ {[%clk 0:00:03.9]} 41.
Ke4 {[%clk 0:00:02.3]} 41... Nf1 {[%clk 0:00:03.4]} 42. Bh5 {[%clk 0:00:02.1]}
42... Nd2+ {[%clk 0:00:03.5]} 43. Kd3 {[%clk 0:00:01.7]} 43... Nf1 {[%clk
0:00:03.4]} 44. Rxf7+ {[%clk 0:00:01.5]} 44... Kh6 {[%clk 0:00:03.9]} 45. e6
{[%clk 0:00:01.5]} 45... Kxh5 {[%clk 0:00:03.8]} 46. e7 {[%clk 0:00:01.8]} 46...
Rg3+ {[%clk 0:00:04.1]} 0-1

[Event "Early-Titled-Tuesday-Blitz-January-30-2024"]
[Site "Chess.com"]
[Date "2024.01.30"]
[Round "8"]
[White "HamedWafa4"]
[Black "LiemLe"]
[Result "1-0"]
[WhiteElo "2819"]
[BlackElo "3066"]
[TimeControl "180+1"]
[EndTime "9:30:31 PST"]
[Termination "HamedWafa4 won by resignation"]

1. e4 {[%clk 0:02:57.2]} 1... c5 {[%clk 0:02:59.9]} 2. Nf3 {[%clk 0:02:56.8]}
2... Nc6 {[%clk 0:03:00.4]} 3. Bb5 {[%clk 0:02:56.2]} 3... g6 {[%clk 0:03:00]}
4. O-O {[%clk 0:02:55.8]} 4... Bg7 {[%clk 0:03:00.6]} 5. Bxc6 {[%clk 0:02:55]}
5... bxc6 {[%clk 0:03:01.5]} 6. Re1 {[%clk 0:02:54.6]} 6... Qc7 {[%clk
0:03:01.9]} 7. c3 {[%clk 0:02:52.7]} 7... d6 {[%clk 0:02:59.7]} 8. d4 {[%clk
0:02:52.5]} 8... cxd4 {[%clk 0:03:00.6]} 9. cxd4 {[%clk 0:02:53.1]} 9... Nf6
{[%clk 0:03:01.4]} 10. Nc3 {[%clk 0:02:52.9]} 10... O-O {[%clk 0:03:01.2]} 11.
h3 {[%clk 0:02:53.3]} 11... c5 {[%clk 0:03:01.1]} 12. dxc5 {[%clk 0:02:50.3]}
12... Qxc5 {[%clk 0:03:00.8]} 13. Be3 {[%clk 0:02:50.4]} 13... Qc7 {[%clk
0:02:39.7]} 14. Bd4 {[%clk 0:02:49.1]} 14... Bb7 {[%clk 0:02:35.1]} 15. Qa4
{[%clk 0:02:40.3]} 15... Bc6 {[%clk 0:02:24.1]} 16. Qa6 {[%clk 0:02:30.5]} 16...
Rfc8 {[%clk 0:02:17]} 17. Rac1 {[%clk 0:02:25.5]} 17... Qb7 {[%clk 0:02:15.2]}
18. Qxb7 {[%clk 0:02:20]} 18... Bxb7 {[%clk 0:02:16.1]} 19. Nd2 {[%clk
0:02:14.1]} 19... Nd7 {[%clk 0:01:15.7]} 20. Bxg7 {[%clk 0:02:11.8]} 20... Kxg7
{[%clk 0:01:16.6]} 21. f3 {[%clk 0:02:10.1]} 21... Rab8 {[%clk 0:01:13.6]} 22.
Nf1 {[%clk 0:01:59.1]} 22... Ne5 {[%clk 0:01:08]} 23. Red1 {[%clk 0:01:56]}
23... f5 {[%clk 0:01:06.3]} 24. exf5 {[%clk 0:01:50.1]} 24... gxf5 {[%clk
0:01:07.2]} 25. Ne3 {[%clk 0:01:47]} 25... Kf6 {[%clk 0:00:56.2]} 26. f4 {[%clk
0:01:30.5]} 26... Ng6 {[%clk 0:00:56]} 27. g3 {[%clk 0:01:24.2]} 27... Rc6
{[%clk 0:00:20.3]} 28. Ncd5+ {[%clk 0:01:12.7]} 28... Kf7 {[%clk 0:00:20.7]} 29.
b3 {[%clk 0:01:01.5]} 29... Rbc8 {[%clk 0:00:15]} 30. Rxc6 {[%clk 0:01:01]}
30... Rxc6 {[%clk 0:00:15.9]} 31. Kf2 {[%clk 0:00:42.5]} 31... a5 {[%clk
0:00:13.3]} 32. Nc4 {[%clk 0:00:37.4]} 32... Rc5 {[%clk 0:00:13.8]} 33. Nde3
{[%clk 0:00:35.4]} 33... d5 {[%clk 0:00:12.5]} 34. Nb2 {[%clk 0:00:30.8]} 34...
Kf6 {[%clk 0:00:12]} 35. Na4 {[%clk 0:00:30.8]} 35... Rc7 {[%clk 0:00:10.9]} 36.
Rxd5 {[%clk 0:00:28.1]} 36... e5 {[%clk 0:00:04.7]} 37. fxe5+ {[%clk 0:00:28]}
37... Nxe5 {[%clk 0:00:05]} 38. Rxa5 {[%clk 0:00:27.3]} 38... f4 {[%clk
0:00:03.3]} 39. gxf4 {[%clk 0:00:24.2]} 39... Nd3+ {[%clk 0:00:03.9]} 40. Kg3
{[%clk 0:00:23.2]} 40... Bc8 {[%clk 0:00:02.1]} 41. Ng4+ {[%clk 0:00:23.1]}
41... Kf7 {[%clk 0:00:02.1]} 42. Ne5+ {[%clk 0:00:23]} 42... Nxe5 {[%clk
0:00:02.3]} 43. fxe5 {[%clk 0:00:23.4]} 43... Ke6 {[%clk 0:00:02.9]} 44. Kf4
{[%clk 0:00:22.5]} 44... Rf7+ {[%clk 0:00:02.7]} 45. Ke3 {[%clk 0:00:21.9]}
45... Bb7 {[%clk 0:00:03]} 46. Nc5+ {[%clk 0:00:22.2]} 46... Kf5 {[%clk
0:00:02.3]} 47. Nxb7 {[%clk 0:00:23.1]} 47... Rxb7 {[%clk 0:00:02.8]} 48. Kd4
{[%clk 0:00:22.6]} 48... Rd7+ {[%clk 0:00:03]} 49. Rd5 {[%clk 0:00:22.4]} 49...
Ra7 {[%clk 0:00:03.7]} 50. a4 {[%clk 0:00:22.6]} 50... Ke6 {[%clk 0:00:03.4]}
51. Rd6+ {[%clk 0:00:22.8]} 51... Kf5 {[%clk 0:00:03.9]} 52. Rf6+ {[%clk
0:00:22.2]} 52... Kg5 {[%clk 0:00:04.5]} 53. Rf8 {[%clk 0:00:21.7]} 53... Rb7
{[%clk 0:00:04.7]} 54. e6 {[%clk 0:00:21.8]} 54... Rxb3 {[%clk 0:00:03.2]} 55.
e7 {[%clk 0:00:22]} 1-0